Cogmind - Beta 14 @@@ ROGUE MODE // 2025.03.11 @ 22:11:02 Player: Solshine Result: Destroyed by CU-OWA(R) with Subdweller Machine Gun Performance ------------- Evolutions (0) 0 Regions Visited (3) 600 Robots Destroyed (17) 85 Value Destroyed (371) 371 Prototype IDs (0) 0 Alien Tech Used (0) 0 Bonus (0) 0 TOTAL SCORE: 1056 Bonus ------- None Cogmind --------- Core Integrity 0/250 Matter 227/300 Energy 100/100 System Corruption 0% Temperature Cool (0) Movement Core (200) Ox3 Location -10/Subcaves Parts ------- > --- POWER (1) -------- Subdweller Power Source > --- PROPULSION (2) --- (None) > --- UTILITY (2) ------ Subdweller Optics > --- WEAPON (2) ------- Grenade Launcher > --- INVENTORY (5) ---- Light Ion Engine Subdweller Laser Light Assault Rifle Peak State ------------ > --- POWER ------------ Subdweller Power Source > --- PROPULSION ------- Aluminum Leg > --- UTILITY ---------- Subdweller Optics Makeshift Thermal Plating > --- WEAPON ----------- Heavy Riot Gun Light Assault Rifle > --- INVENTORY -------- Light Ion Engine Subdweller Laser Light Assault Rifle Grenade Launcher [Rating: 14] Favorites ----------- Power Ion Engine Engine Ion Engine Power Core Light Nuclear Core Propulsion Aluminum Leg Leg Aluminum Leg Utility Small Storage Unit Device Subdweller Optics Storage Small Storage Unit Processor Targeting Computer Protection Makeshift Thermal Plating Weapon Light Assault Rifle Energy Gun Subdweller Laser Ballistic Gun Light Assault Rifle Launcher Grenade Launcher Build | -11 -10 -10 -10 ------- Run | Yrd Mat Min Sub Slots Evolved . | . . . . Power . | . . . . Propulsion . | . . . . Utility . | . . . . Weapon . | . . . . Parts Attached 23 | 8 1 3 11 Power 5 | 2 . 1 2 Engine 4 | 2 . . 2 Core 1 | . . 1 . Reactor . | . . . . Propulsion 3 | 2 . 1 . Treads . | . . . . Leg 3 | 2 . 1 . Wheel . | . . . . Hover . | . . . . Flight . | . . . . Utility 7 | 2 1 1 3 Device 3 | 1 1 . 1 Storage 1 | 1 . . . Processor 1 | . . 1 . Hackware . | . . . . Protection 2 | . . . 2 Artifact . | . . . . Weapon 8 | 2 . . 6 Energy Gun 4 | . . . 4 Energy Cannon . | . . . . Ballistic Gun 2 | 2 . . . Ballistic Cannon . | . . . . Launcher 2 | . . . 2 Special Weapon . | . . . . Impact Weapon . | . . . . Slashing Weapon . | . . . . Piercing Weapon . | . . . . Special Melee Weapon . | . . . . Unidentified Prototypes . | . . . . Parts Lost 9 | . . 3 6 Power 1 | . . . 1 Propulsion 3 | . . 2 1 Utility 3 | . . 1 2 Weapon 2 | . . . 2 Highest Loss Streak 3 | . . 3 3 To Critical Strikes . | . . . . Average Slot Usage (%) 82 | . 99 79 77 Engine 10 | . 14 5 9 Core 3 | . . 8 4 Leg 16 | . 28 13 13 Device 8 | . 13 . 7 Storage 5 | . 14 14 . Processor 1 | . . 8 . Protection 8 | . . . 12 Energy Gun 8 | . . . 12 Ballistic Gun 19 | . 28 28 14 Peak Build Rating 14 | 7 7 8 14 Average Rating 9 | 4 6 6 11 On Entrance 5 | . 7 7 8 Naked Turns . | . . . . Heaviest Build 28 | 13 13 13 28 Greatest Support 20 | 20 20 20 10 Greatest Overweight (x) 3 | . . 3 3 Average Overweight (x) . | . . 1 1 Largest Inventory Capacity 8 | 8 8 8 8 Average Capacity 6 | 6 8 8 5 Most Carried 5 | 5 5 5 5 Average Carried 3 | 2 3 3 3 Final Capacity 8 | 8 8 8 5 Final Carried 4 | 2 4 3 3 Class Distribution -------------------- 100% | Mutant Dominant Class ---------------- Mutant | -10/Materials Mutant | -10/Mines Mutant | -10/Subcaves Resources | -11 -10 -10 -10 ----------- Run | Yrd Mat Min Sub Matter Collected 497 | 252 43 70 132 Remotely . | . . . . Salvage Created 446 | 65 83 76 222 Parts 37 | 9 6 4 18 Haulers Intercepted . | . . . . Recyclers Shooed 1 | . . 1 . Parts Field Recycled . | . . . . Retrieved Matter . | . . . . Parts Self-Destructed 11 | . . . 11 Prevented . | . . . . Kills | -11 -10 -10 -10 ------- Run | Yrd Mat Min Sub Combat Hostiles Destroyed 14 | . 4 2 8 Guns 11 | . 4 2 5 AOE 3 | . . . 3 Classes Destroyed 5 | 1 2 . 2 Tunneler 3 | 3 . . . Swarmer 7 | . 3 . 4 Grunt 3 | . 1 2 . Sentry 1 | . . . 1 Subdweller 3 | . . . 3 Best Kill Streak 4 | 3 2 1 4 Combat Bots Only 4 | . 2 1 4 Max Kills in Single Turn 2 | 1 1 1 2 Gunslinging . | . . . . Exploded 2 | . . . 2 Melee . | . . . . Uniques/NPCs Destroyed . | . . . . Combat | -11 -10 -10 -10 -------- Run | Yrd Mat Min Sub Hostile Shots Fired 117 | . 21 24 72 Missed 40 | . 9 4 27 Damage Taken 1337 | . 108 311 918 Core 252 | . 27 33 192 Absorbed by Shields . | . . . . Ignored by Resistances 2 | . . . 2 Core Remaining (%) 100 | 100 . . . Volleys Fired 63 | 6 10 14 33 Largest 2 | 2 2 2 2 Hottest 80 | 40 40 40 80 Shots Fired 117 | 12 20 28 57 Gun 108 | 12 20 28 48 Cannon . | . . . . Launcher 9 | . . . 9 Special . | . . . . Kinetic 90 | 12 20 28 30 Thermal 9 | . . . 9 Explosive 9 | . . . 9 Electromagnetic 9 | . . . 9 Robot Hit Streak 20 | 3 3 15 20 Robot Miss Streak 3 | 2 2 2 3 Penetration Max . | . . . . Secondary Targets 1 | . . . 1 Max Gunslinging Chain 1 | . . . 1 Shots Hit Robots 71 | 7 9 20 35 Core Hits 34 | 6 5 7 16 Critical Kills . | . . . . Critical Parts Destroyed . | . . . . Critical Strikes . | . . . . Melee Attacks . | . . . . Impact . | . . . . Slashing . | . . . . Piercing . | . . . . Sneak Attacks . | . . . . Combat Hostiles . | . . . . Follow-up Attacks . | . . . . Damage Inflicted 1112 | 60 73 173 806 Guns 707 | 60 73 172 402 Cannons . | . . . . Explosions 404 | . . . 404 Melee . | . . . . Ramming 1 | . . 1 . Kinetic 428 | 60 73 172 123 Thermal 158 | . . . 158 Explosive 404 | . . . 404 Electromagnetic 121 | . . . 121 Impact . | . . . . Slashing . | . . . . Piercing . | . . . . Highest Corruption . | . . . . Average Corruption . | . . . . Corruption Purged . | . . . . Corruption Blocked . | . . . . Overload Shots . | . . . . Overflow Damage 17 | . . . 17 Projectiles . | . . . . Explosions 17 | . . . 17 Melee . | . . . . Knockbacks . | . . . . Impact . | . . . . Kinetic . | . . . . Secondary . | . . . . Self-Inflicted Damage 46 | . . . 46 Shots 3 | . . . 3 Rammed 1 | . . 1 . Targets Rammed 1 | . . 1 . Kicked . | . . . . Crushed . | . . . . Highest Temperature 259 | . 12 36 259 Average Temperature 48 | . 9 15 76 Received Heat Transfer 550 | . 18 228 304 Siege Activations . | . . . . Robots Corrupted . | . . . . Combat Hostiles . | . . . . Parts Fried . | . . . . Impact Corruptions . | . . . . Robots Melted . | . . . . Combat Hostiles . | . . . . Parts Melted . | . . . . Heat Transferred 200 | . . . 200 Parts Sabotaged . | . . . . Parts Stolen . | . . . . Parts Stripped . | . . . . Power Chain Reactions . | . . . . Alert | -11 -10 -10 -10 ------- Run | Yrd Mat Min Sub Peak Influence 141 | 15 141 30 . Initial 9 | . 9 5 . Average 48 | 4 73 24 . Maximum Alert Level . | . . . . Low Security (%) 100 | 100 100 100 . Level 1 . | . . . . Level 2 . | . . . . Level 3 . | . . . . Level 4 . | . . . . Level 5 . | . . . . High Security . | . . . . Max Security . | . . . . Squads Dispatched . | . . . . Investigation . | . . . . Extermination . | . . . . Reinforcement . | . . . . Assault . | . . . . Garrison . | . . . . Intercept . | . . . . Searches Triggered . | . . . . Construction Impeded . | . . . . Haulers Reinforced . | . . . . Active Scanning Responses . | . . . . Cargo Convoy Interrupts . | . . . . Stealth | -11 -10 -10 -10 --------- Run | Yrd Mat Min Sub Distress Signals 2 | . 2 . . Communications Jammed . | . . . . Distress Signals . | . . . . Times Spotted 27 | . 9 2 16 Peak Tracking Total 6 | . 4 2 6 Tactical Retreats 1 | . 1 . . Traps | -11 -10 -10 -10 ------- Run | Yrd Mat Min Sub Traps Triggered 3 | . . . 3 Indirectly . | . . . . Trap Hack Attempts . | . . . . Triggered . | . . . . Disarmed . | . . . . Reprogrammed . | . . . . Reused . | . . . . Traps Extracted . | . . . . Installed . | . . . . Triggered . | . . . . Machines | -11 -10 -10 -10 ---------- Run | Yrd Mat Min Sub Machines Disabled . | . . . . Max in Single Turn . | . . . . Machines Repaired . | . . . . Machines Dismantled . | . . . . Machines Sabotaged . | . . . . Overloaded Fab Kills . | . . . . Hacking | -11 -10 -10 -10 --------- Run | Yrd Mat Min Sub Machines Accessed 3 | . 3 . . Terminals 2 | . 2 . . Fabricators . | . . . . Repair Stations . | . . . . Recycling Units 1 | . 1 . . Scanalyzers . | . . . . Garrison Access . | . . . . Total Hacks 11 | . 11 . . Successful 7 | . 7 . . Failed 4 | . 4 . . Catastrophic 1 | . 1 . . Database Lockouts . | . . . . Manual . | . . . . Terminals 5 | . 5 . . Fabricators . | . . . . Repair Stations . | . . . . Recycling Units 6 | . 6 . . Scanalyzers . | . . . . Garrison Access . | . . . . Terminal Hacks 4 | . 4 . . Alert Level 2 | . 2 . . Surveillance Status 1 | . 1 . . Hauler Manifests 1 | . 1 . . Fabricator Hacks . | . . . . Repair Station Hacks . | . . . . Recycling Unit Hacks 3 | . 3 . . Recycle Component 1 | . 1 . . Process 1 | . 1 . . Retrieve Components 1 | . 1 . . Scanalyzer . | . . . . Garrison Access Hacks . | . . . . Unauthorized Hacks . | . . . . Terminals . | . . . . Fabricators . | . . . . Repair Stations . | . . . . Recycling Units . | . . . . Scanalyzers . | . . . . Garrison Access . | . . . . Data Cores Recovered . | . . . . Used . | . . . . Hacking Detections 2 | . 2 . . Full Trace Events . | . . . . Feedback Events . | . . . . Feedback Blocked . | . . . . Robot Schematics Acquired . | . . . . Robots Built . | . . . . Authchips . | . . . . Time . | . . . . Total Robot Build Rating . | . . . . Part Schematics Acquired . | . . . . Parts Built . | . . . . Authchips . | . . . . Time . | . . . . Total Part Build Rating . | . . . . Parts Repaired . | . . . . Time . | . . . . Parts Recycled 1 | . 1 . . Recycled Matter 37 | . 37 . . Retrieved Matter . | . . . . Retrieved Components . | . . . . Parts Scanalyzed . | . . . . Part Schematics Acquired . | . . . . Parts Damaged . | . . . . Bothacking | -11 -10 -10 -10 ------------ Run | Yrd Mat Min Sub Used RIF Installer . | . . . . Robots Hacked . | . . . . Non-combat . | . . . . Combat . | . . . . Robot Hacks Applied . | . . . . Relay Couplers Released . | . . . . Fabnet Peak Effective % . | . . . . Robots Rewired . | . . . . Allies Hacked . | . . . . Hacks Repelled . | . . . . Allies | -11 -10 -10 -10 -------- Run | Yrd Mat Min Sub Total Allies . | . . . . Largest Group . | . . . . Highest-Rated Group . | . . . . Highest-Rated Ally . | . . . . Total Orders . | . . . . Ally Attacks . | . . . . Total Damage . | . . . . Kills . | . . . . Allies Corrupted . | . . . . Allies Melted . | . . . . Intel | -11 -10 -10 -10 ------- Run | Yrd Mat Min Sub Robot Analysis Total . | . . . . Derelict Logs Recovered . | . . . . Drone Launches . | . . . . Drone Recoveries . | . . . . Exploration | -11 -10 -10 -10 ------------- Run | Yrd Mat Min Sub Turns Passed 2002 | 129 420 197 1256 Spaces Moved 959 | 69 277 80 533 Core 19 | 8 . 10 1 Treads . | . . . . Legs 940 | 61 277 70 532 Wheels . | . . . . Hover . | . . . . Flight . | . . . . Fastest Speed 50 | 50 120 120 190 Average Speed 177 | 111 120 186 215 Slowest Speed 260 | 120 120 200 260 Overloaded Moves . | . . . . Propulsion Burnouts . | . . . . Robots Hopped . | . . . . Cave-ins Triggered . | . . . . Exploration Rate (%) 26 | 6 47 10 43 Regions Visited 3 Branch Regions 2 Pre-discovered Areas . | . . . . Known Exits Taken . | . . . . Unknown Exits Taken 3 | 1 1 1 . Scrap Searched . | . . . . Spaces Dug . | . . . . Terrain Destroyed 30 | . . . 30 Melee . | . . . . Projectile . | . . . . AOE 30 | . . . 30 Terrain Rammed . | . . . . Walls Destroyed . | . . . . Machines Disabled . | . . . . Actions | -11 -10 -10 -10 --------- Run | Yrd Mat Min Sub Total 1154 | 110 349 105 590 Wait 84 | 19 58 7 . Move 956 | 68 276 79 533 Hop . | . . . . Pick Up 21 | 9 3 1 8 Fast Attach . | . . . . Attach 16 | 7 1 2 6 Detach 1 | . 1 . . Swap 7 | 1 . 1 5 Drop 5 | . . . 5 Fire 63 | 6 10 14 33 Melee . | . . . . Ram 1 | . . 1 . Kick . | . . . . Crush . | . . . . Escape Stasis . | . . . . Rewire . | . . . . Trap . | . . . . Miscellaneous . | . . . . Route ------- -11/Scrapyard -10/Materials -10/Mines (discovered 2 exits: [*Mat] / [*Sub]) -10/Subcaves History --------- Turn | Location | Event 8 | -11/Scrapyard | Discovered new exit (range 15) 130 | -11/Scrapyard | Entered Materials 304 | -10/Materials | Build established: Mutant 343 | -10/Materials | Discovered new exit (range 16) 550 | -10/Materials | Entered Mines 550 | -10/Mines | Discovered new exit (range 10) 627 | -10/Mines | Lost 3 parts (2n1u) 717 | -10/Mines | Discovered new exit (range 9) 747 | -10/Mines | Entered Subcaves 778 | -10/Subcaves | Ambushed by Subdwellers from Twisted Machinery 971 | -10/Subcaves | A swath of the cavern ceiling suddenly collapsed 1183 | -10/Subcaves | Shifting Twisted Machinery released Hvy. Riot Gun 1370 | -10/Subcaves | Shifting Twisted Machinery released Mak. Thermal Plating 1536 | -10/Subcaves | Ambushed by Subdweller buried in earth 1552 | -10/Subcaves | Core integrity fell below 50% 1803 | -10/Subcaves | Shifting Twisted Machinery released Piercing Trap 1814 | -10/Subcaves | Shifting Twisted Machinery released Mak. Light Armor Plating 1984 | -10/Subcaves | Disturbed a concealed Subdweller 1986 | -10/Subcaves | Core integrity fell below 20% 2003 | -10/Subcaves | Destroyed by CU-OWA(R) with Subdweller Machine Gun Last Messages --------------- A8-01E(u) deconstructs Twisted Machinery. Piercing Trap falls loose from the Twisted Machinery. Mak. Light Armor Plating falls loose from the Twisted Machinery. A8-01E(u) deconstructs Twisted Machinery. Y-45 Defender destroyed. Beam Rifle fries itself beyond repair. Acquired 1 matter. Heat Sink fries itself beyond repair. Imp. Ion Engine fries itself beyond repair. Lgt. Armor Plating fries itself beyond repair. Triggered Shrapnel Trap. An expanding cloud of shrapnel blasts out in all directions. Mak. Thermal Plating destroyed. CU-OWA(R) angrily emerges from the Twisted Machinery. Aluminum Leg destroyed. Lgt. Assault Rifle destroyed. Map ----- +----------------------------------------------------+ | ????????????????????????????????? | | ????????????????????????????????? | | ????????????????????????????????? | | ????????????????????????????????? | | ????????????????????????????????? | | ????????????????????????????????? | | ?????????????????? ????? ????? | | ???????????????? ????? ???? | | ???????????????# ????? ???? | | ???????????????# ?### ??? | | ???????????????# #?# ???? | | ???????????????# ### ???? | | ???????????????? ????? | | ??????????####?# ?????? | | ?????????? # ## ## #?????? | | ?????????? # #?????? | | ?????##### # ##????? | | ????##< < < # #????? | | ????#< < ## #????? | | ????# <<< # #????? | | ????#< << # #?????? | | ????#<<< # #?????? | | ????#<< R ;# ## ##????? | | ????# < "" ## #????? | | ????# # ### ###??? | | ????#$ @ # ### # # #?? | | ????# $ < # #"" #?## ##?? | | ????# <######" #??# # #?? | | ????#$ $ ##????# ##?## "#?? | | ????#$ $ #?????## ##?# ##?? | | ????##$$ <#???#### #?## ##? | | ?????######???# #### "## | | ???????????????? ### # " "" | | ????????????????## #### " """" | | ?????????????????# ### " """ | | ???????????????### # # | | ??????????????## # ##### | | ??????????????# #???# | | ??????????????# #???? | | ??????????????# ### # #####???? | | ??????????????# #?#####???????? | | ??????????????# #############?? | | ??????????????# ## # ## ##? | | ??????????????# ## % ## | | ????????????? ?###! # | | ???????????? ???### ## # # # | | ??????????? ?????######## ## | | ??????????# ????????????## # | | ??????????# ????????????# | | ??????????#####????????????# | +----------------------------------------------------+ Best States ------------- Heat Dissipation 25 Energy Generation 15 Energy Capacity 250 Matter Stores 300 Matter Capacity 300 Sight Range 21 Terrain Scan Density 10 Armor Coverage 800 Resistance: TH 10 Evasion (%) 55 Targeting Accuracy 5 Item Schematics ----------------- None Robot Schematics ------------------ None Fabricated ------------ Nothing Alien Tech Used ----------------- None Achievements -------------- Shopping List Challenges ------------ None Game ------ Seed BoreLinkedFilter Manual? 0 Play Time 00:21:40 Cumulative 2.5 hours Start 2025.03.11 @ 21:49:17 End 2025.03.11 @ 22:11:02 Sessions 1 Manual Loads 0 Difficulty Rogue Special Mode None Game No. 7 Rogue 7 Adventurer 0 Explorer 0 Win Type - Total 0 Types 0/0/0/0/0/0/0/0/0 Lore% 1 Gallery% 4 Achievement% 5 Wizard Run 0 Options --------- Layout 1 ASCII 0 Keyboard 0 Movement Numpad Keybinds 0 Fullscreen 1 Font 24/Smallcaps Map View 50x35 Zoom Use 0% Tactical HUD 0 Map Filters NONE Filters NONE Steam 1 RUN: 52bac316-d263-4e56-9967-9a3fcac0598e